Cogmind - Beta 15 @@@ ROGUE MODE // 2025.08.10 @ 18:12:18 Player: Jiber Result: Destroyed by H-66 Slayer with Gauss Rifle Performance ------------- Evolutions (5) 2500 Regions Visited (16) 3200 Robots Destroyed (172) 860 Value Destroyed (8975) 8975 Prototype IDs (21) 420 Alien Tech Used (0) 0 Bonus (2852) 2852 TOTAL SCORE: 18807 Bonus ------- High Alert Combat Kills 1152 Entered Garrisons 400 Used RIF Installer 1000 Aligned with FarCom 300 Cogmind --------- Core Integrity 0/1000 Matter 280/300 Energy 95/100 System Corruption 13% Temperature Cool (0) Movement Core (50) Location -5/Factory Parts ------- > --- POWER (2) -------- (None) > --- PROPULSION (3) --- (None) > --- UTILITY (9) ------ Advanced System Shield > --- WEAPON (3) ------- (None) > --- INVENTORY (5) ---- Light Angular Momentum Engine Point Defense System Heavy Phase Cannon Hypervelocity Gauss Cannon Improved Remote Datajack Peak State ------------ > --- POWER ------------ Micro Nuclear Core Light Fission Core > --- PROPULSION ------- Gravmag System Gravmag System Gravmag System > --- UTILITY ---------- Lightpack 2.0 Advanced Sensor Array Advanced Terrain Scanner Advanced Terrain Scan Processor Armor Integrity Analyzer Relay Coupler [NC] Relay Coupler [Sentry] > --- WEAPON ----------- Cooled Plasma Cannon Smartbomb Launcher > --- INVENTORY -------- Improved Deuterium Engine Improved Carbon-fiber Leg Improved Carbon-fiber Leg Improved Titanium Leg Improved Titanium Leg Improved Titanium Leg Flexi-carbon Leg Armored Leg Power Amplifier Improved Cooling System Advanced Targeting Computer Armor Integrity Analyzer Recoil Stabilizer Particle Charger Advanced ECM Suite Reaction Control System Improved Light Armor Plating Improved Heavy Armor Plating EM Disruption Field Improved Shield Generator Relay Coupler [NC] Relay Coupler [Swarmer] Relay Coupler [Hunter] Relay Coupler [Behemoth] Lightning Gun Plasma Rifle Heavy Ion Cannon Phase Cannon Gauss Rifle Magnetic Acceleration Cannon AWS/Autocannon Heavy Missile Launcher Remote Datajack Remote Datajack Chainsword [Rating: 109] Favorites ----------- Power Light Nuclear Core Engine Improved Deuterium Engine Power Core Light Nuclear Core Reactor Antimatter Reactor Propulsion Advanced Treads Treads Advanced Treads Leg Flexi-carbon Leg Wheel Compact Wheel Hover Unit Gravmag System Utility Armor Integrity Analyzer Device Advanced Terrain Scanner Storage Lightpack 2.0 Processor Armor Integrity Analyzer Hackware Relay Coupler [NC] Protection Improved Light Armor Plating Weapon AWS/Autocannon Energy Gun Field Laser Energy Cannon Advanced Beam Cannon Ballistic Gun Gauss Rifle Ballistic Cannon AWS/Autocannon Launcher Smartbomb Launcher Special Weapon Remote Datajack Build | -11 -10 -10 -9 -9 -9 -8 -8 -8 -8 -7 -7 -7 -6 -6 -6 -5 ------- Run | Yrd Mat Min Mat Min Exi Min Mat Sto Gar Fac Gar Fac Fac Was Fac Fac Slots Evolved 10 | . . . 2 . . . 2 . . 2 . . 2 . . 2 Power 1 | . . . . . . . . . . . . . . . . 1 Propulsion 1 | . . . 1 . . . . . . . . . . . . . Utility 7 | . . . 1 . . . 1 . . 2 . . 2 . . 1 Weapon 1 | . . . . . . . 1 . . . . . . . . . Parts Attached 177 | 6 4 4 17 6 3 1 10 4 12 4 13 21 2 . 2 68 Power 31 | 1 . . 3 1 . . 3 . 2 . 2 4 . . . 15 Engine 6 | 1 . . 2 . . . 1 . . . . 1 . . . 1 Core 23 | . . . 1 1 . . 2 . 2 . 2 3 . . . 12 Reactor 2 | . . . . . . . . . . . . . . . . 2 Propulsion 53 | 3 . 1 7 1 1 . 3 . 9 . 6 7 . . . 15 Treads 5 | . . . . 1 . . 3 . 1 . . . . . . . Leg 30 | 1 . . 7 . 1 . . . 2 . 5 . . . . 14 Wheel 3 | 2 . 1 . . . . . . . . . . . . . . Hover 15 | . . . . . . . . . 6 . 1 7 . . . 1 Flight . | . . . . . . . . . . . . . . . . . Utility 50 | 1 2 . 3 2 2 . 3 . . 4 2 5 2 . 1 23 Device 16 | . . . 2 . . . . . . . 1 . 2 . . 11 Storage 5 | 1 2 . . . 1 . 1 . . . . . . . . . Processor 7 | . . . 1 1 . . . . . 1 . . . . 1 3 Hackware 8 | . . . . . . . . . . 2 . 4 . . . 2 Protection 14 | . . . . 1 1 . 2 . . 1 1 1 . . . 7 Artifact . | . . . . . . . . . . . . . . . . . Weapon 43 | 1 2 3 4 2 . 1 1 4 1 . 3 5 . . 1 15 Energy Gun 10 | 1 1 2 1 . . 1 . 1 . . . 1 . . . 2 Energy Cannon 7 | . . . 2 . . . . . . . . . . . 1 4 Ballistic Gun 6 | . . . . . . . . 2 1 . 1 . . . . 2 Ballistic Cannon 10 | . . 1 1 1 . . 1 . . . 2 1 . . . 3 Launcher 6 | . 1 . . 1 . . . 1 . . . 1 . . . 2 Special Weapon 4 | . . . . . . . . . . . . 2 . . . 2 Impact Weapon . | . . . . . . . . . . . . . . . . . Slashing Weapon . | . . . . . . . . . . . . . . . . . Piercing Weapon . | . . . . . . . . . . . . . . . . . Special Melee Weapon . | . . . . . . . . . . . . . . . . . Unidentified Prototypes 15 | . . . 3 . 1 . 2 3 1 . . 1 . . 1 3 Parts Lost 59 | . . 1 1 7 . . 1 . . . 6 8 . . 1 34 Power 11 | . . . . 1 . . 1 . . . 1 1 . . . 7 Propulsion 19 | . . . . 4 . . . . . . 3 2 . . . 10 Utility 16 | . . . . 1 . . . . . . 1 2 . . 1 11 Weapon 13 | . . 1 1 1 . . . . . . 1 3 . . . 6 Highest Loss Streak 14 | . . 1 1 4 . . 1 . . . 3 6 . . 1 14 To Critical Strikes . | . . . . . . . . . . . . . . . . . Average Backups 17 | 3 5 7 9 9 9 6 17 37 39 34 33 34 35 36 36 6 Power 1 | . . . . 1 . 1 1 1 1 1 2 1 1 2 2 . Propulsion 4 | 1 2 3 2 1 . . 4 13 14 10 7 5 8 8 7 . Utility 7 | . . 1 2 3 3 3 9 17 15 17 16 19 16 16 16 1 Weapon 3 | 1 2 3 4 4 3 2 2 4 6 5 6 6 8 9 9 2 Tool/Special . | . . . . . . . . . . . . . . . . . Unused Backups 59 | . . . 2 . 3 . 4 3 7 2 9 6 . . 3 20 Power 5 | . . . . . . . . . 1 . 1 1 . . . 2 Propulsion 4 | . . . . . . . . 1 . . 1 1 . . . 1 Utility 35 | . . . . . 1 . 4 2 5 2 5 2 . . 2 12 Weapon 13 | . . . 2 . 2 . . . 1 . 1 2 . . . 5 Tool/Special 2 | . . . . . . . . . . . 1 . . . 1 . Average Slot Usage (%) 78 | . 93 97 96 78 76 77 68 72 67 83 73 75 73 73 77 87 Engine 1 | . 14 14 8 1 . . 1 . . . . 1 . . . . Core 7 | . . . 1 9 11 11 7 9 9 7 5 5 6 6 6 8 Treads 9 | . . . . 7 9 . 25 27 24 . . . . . . . Leg 7 | . . . 28 7 1 11 . . . . 17 9 . . . 14 Hover 2 | . . . . . . . . . 1 23 3 12 20 20 20 1 Device 5 | . . . 14 1 . . . . . . 2 . 6 6 6 14 Storage 7 | . 21 28 17 11 11 11 9 9 9 7 7 7 6 6 6 . Processor 10 | . . . . 11 11 11 9 9 9 10 7 4 . . 4 15 Hackware 4 | . . . . . . . . . . 10 3 13 13 13 13 9 Protection 5 | . . . . 7 10 11 6 . . . 8 2 6 6 4 4 Energy Gun 1 | . 15 16 17 . . 11 . 4 2 7 . 1 . . . . Energy Cannon 2 | . . . . 11 11 11 . . . . . . . . 2 3 Ballistic Gun 2 | . . . . . . . . 5 2 7 8 6 . . . 2 Ballistic Cannon 5 | . . 2 2 6 11 . 8 4 6 . 5 5 . . . 2 Launcher 1 | . 12 5 . 3 . . . 3 2 7 . . 6 6 6 . Peak Build Rating 109 | 5 7 12 21 24 31 29 90 89 90 86 85 87 92 93 99 109 Average Rating 67 | 2 6 7 16 21 25 29 74 80 85 84 79 81 91 92 96 83 On Entrance 53 | . 5 7 12 21 24 31 29 89 74 78 83 85 86 92 93 96 Naked Turns . | . . . . . . . . . . . . . . . . . Heaviest Build 101 | 10 20 21 27 31 41 25 81 70 70 25 33 31 27 27 32 101 Greatest Support 66 | 32 32 32 35 35 20 20 66 66 66 27 57 60 27 27 27 63 Greatest Overweight (x) 6 | 1 . . . 4 2 1 3 1 1 . 2 1 . . 1 6 Average Overweight (x) . | . . . . . 1 1 1 . . . . . . . . . Largest Inventory Capacity 40 | 8 10 10 10 10 15 10 40 40 40 40 40 40 40 40 40 40 Average Capacity 21 | 7 9 10 10 10 10 10 29 40 40 40 40 40 40 40 40 8 Most Carried 40 | 6 7 10 10 10 11 10 38 40 40 39 40 40 39 40 40 40 Average Carried 18 | 3 5 7 9 9 9 10 17 38 39 37 37 38 38 39 39 7 Final Capacity 40 | 8 10 10 10 10 10 10 40 40 40 40 40 40 40 40 40 5 Final Carried 40 | 3 7 10 10 10 10 10 37 40 40 37 40 38 39 40 40 5 Class Distribution -------------------- 15% | Scavenger-Mutant 14% | Hauler-Gunner 13% | Hauler-Skirmisher 9% | Scavenger-Tank 9% | Tank 8% | Scavenger-Gunner 7% | Mutant 6% | Bothacker-Gunner 4% | Hauler-Tank 3% | Gunner Dominant Class ---------------- Mutant | -10/Materials Mutant | -10/Mines Mutant | -9/Materials Scavenger-Mutant | -9/Mines Scavenger-Mutant | -9/Exiles Scavenger-Mutant | -8/Mines Hauler-Skirmisher | -8/Materials Hauler-Gunner | -8/Storage Hauler-Gunner | -8/Garrison Hauler-Gunner | -7/Factory Hauler-Tank | -7/Garrison Bothacker-Gunner | -7/Factory Bothacker-Tank | -6/Factory Bothacker-Tank | -6/Waste Bothacker-Gunner | -6/Factory Scavenger-Tank | -5/Factory Resources | -11 -10 -10 -9 -9 -9 -8 -8 -8 -8 -7 -7 -7 -6 -6 -6 -5 ----------- Run | Yrd Mat Min Mat Min Exi Min Mat Sto Gar Fac Gar Fac Fac Was Fac Fac Matter Collected 4985 | 249 . 119 382 159 . 62 158 71 216 . 878 615 . . 98 1978 Remotely . | . . . . . . . . . . . . . . . . . Salvage Created 6651 | . . 64 380 333 . 47 620 264 428 . 788 501 . . 198 3028 Parts 294 | . . 2 26 11 . 6 31 10 19 . 28 25 . . 10 126 Haulers Intercepted 4 | . . . 1 . . . . . . . . 1 . . . 2 Recyclers Shooed 3 | . . . . . . . . . . . . 1 . . . 2 Parts Field Recycled . | . . . . . . . . . . . . . . . . . Retrieved Matter . | . . . . . . . . . . . . . . . . . Parts Self-Destructed . | . . . . . . . . . . . . . . . . . Prevented . | . . . . . . . . . . . . . . . . . Kills | -11 -10 -10 -9 -9 -9 -8 -8 -8 -8 -7 -7 -7 -6 -6 -6 -5 ------- Run | Yrd Mat Min Mat Min Exi Min Mat Sto Gar Fac Gar Fac Fac Was Fac Fac Combat Hostiles Destroyed 163 | . . 3 11 15 . 3 16 6 14 . 21 12 . . 6 56 Melee 1 | . . . . . . . . . . . . . . . . 1 Guns 38 | . . 1 9 . . 2 . . . . 12 6 . . . 8 Cannons 96 | . . 1 2 7 . 1 16 5 11 . 8 5 . . . 40 AOE 21 | . . 1 . 8 . . . 1 2 . . . . . 6 3 Classes Destroyed 20 | . . 2 2 3 . . 6 . 1 . 1 2 . . . 3 Builder 3 | . . . . . . . . . . . . . . . . 3 Hauler 4 | . . . 1 . . . . . . . . 1 . . . 2 Recycler 1 | . . . . . . . . . . . . 1 . . . . Operator 5 | . . . . . . . 2 . . . . . . . 1 2 Drone 1 | . . . . . . . . . . . 1 . . . . . Watcher 7 | . . . 1 . . . 4 . . . . . . . . 2 Swarmer 12 | . . 1 4 . . 3 . . . . 4 . . . . . Cutter 2 | . . . . . . . . . 2 . . . . . . . Saboteur 1 | . . . . . . . . . . . . . . . . 1 Grunt 70 | . . 2 7 2 . . 8 4 9 . 8 5 . . 4 21 Brawler 6 | . . . . . . . 1 1 . . 2 . . . . 2 Duelist 6 | . . . . 1 . . 1 . . . . 1 . . . 3 Protector 1 | . . . . . . . . . . . . . . . . 1 Sentry 13 | . . . . . . . 2 1 2 . 4 1 . . 1 2 Demolisher 2 | . . . . 2 . . . . . . . . . . . . Specialist 2 | . . . . . . . 2 . . . . . . . . . Hunter 14 | . . . . . . . 1 . 1 . 2 1 . . . 9 Programmer 22 | . . . . . . . . . . . . 4 . . 1 17 Heavy 1 | . . . . . . . 1 . . . . . . . . . Assembled 10 | . . . . 10 . . . . . . . . . . . . Best Kill Streak 6 | . . 2 3 6 . 3 6 3 5 . 5 3 . . 4 6 Combat Bots Only 6 | . . 2 3 6 . 3 5 3 5 . 5 3 . . 4 6 Max Kills in Single Turn 3 | . . 1 1 2 . 1 1 1 2 . 2 1 . . 3 2 Gunslinging . | . . . . . . . . . . . . . . . . . Exploded 3 | . . 1 . 2 . . . 1 2 . . . . . 3 2 Melee 1 | . . . . . . . . . . . . . . . . 1 Uniques/NPCs Destroyed . | . . . . . . . . . . . . . . . . . Combat | -11 -10 -10 -9 -9 -9 -8 -8 -8 -8 -7 -7 -7 -6 -6 -6 -5 -------- Run | Yrd Mat Min Mat Min Exi Min Mat Sto Gar Fac Gar Fac Fac Was Fac Fac Hostile Shots Fired 1352 | . 2 13 96 33 . 18 40 8 40 . 321 139 . . 42 600 Missed 472 | . 2 1 31 13 . 3 13 2 9 . 144 53 . . 21 180 Hits 880 | . . 12 65 20 . 15 27 6 31 . 177 86 . . 21 420 Melee 16 | . . . . 4 . . . . . . 8 1 . . . 3 Projectile 864 | . . 12 65 16 . 15 27 6 31 . 169 85 . . 21 417 AOE 14 | . . . . 10 . . . . 1 . . . . . . 3 Critical Strikes 38 | . . . 2 . . 2 1 1 2 . 8 3 . . 1 18 Part Disruptions 1 | . . . . . . . . . . . . . . . . 1 Damage Taken 13937 | . . 165 574 718 . 112 595 108 581 . 2101 973 . . 223 7787 Core 1991 | . . 26 67 186 . . 134 22 63 . 327 104 . . 56 1006 Absorbed by Shields 814 | . . . 126 36 . . . . . . . . . . . 652 Ignored by Resistances 62 | . . . . . . . . . . . 35 15 . . 12 . Regen/Repaired (Parts) 171 | . . . 59 . . . 112 . . . . . . . . . Core Remaining (%) 69 | 100 . 89 . . . 36 . . 60 . . 38 . . 93 . Volleys Fired 404 | . 2 6 36 22 . 5 . 9 4 . 83 54 . . 10 173 Largest 3 | . 1 2 2 2 . 2 . 3 3 . 3 2 . . 1 3 Hottest 165 | . 50 80 113 116 . 131 . 114 114 . 116 103 . . 46 165 Shots Fired 898 | . 2 11 72 42 . 10 53 23 45 . 159 86 . . 10 385 Gun 351 | . 2 6 54 . . 5 . 11 5 . 107 50 . . . 111 Cannon 500 | . . 2 18 29 . 5 53 10 39 . 46 34 . . . 264 Launcher 35 | . . 3 . 13 . . . 2 1 . 6 . . . 6 4 Special 12 | . . . . . . . . . . . . 2 . . 4 6 Kinetic 561 | . . 2 18 7 . . 53 19 43 . 139 68 . . . 212 Thermal 251 | . 2 6 36 22 . 10 . . . . . 16 . . . 159 Explosive 13 | . . 3 . . . . . . . . . . . . 6 4 Electromagnetic 61 | . . . 18 13 . . . 4 2 . 20 . . . . 4 Robot Hit Streak 16 | . . 3 6 6 . 3 11 14 10 . 9 11 . . 11 16 Robot Miss Streak 6 | . 2 5 5 6 . 1 2 2 2 . 5 3 . . 1 4 Penetration Max 2 | . . . . . . . . . . . 2 1 . . . 1 Secondary Targets 1 | . . . 1 . . . . . . . . . . . . . Max Gunslinging Chain 1 | . . . 1 . . . . . . . . . . . . . Autonomous 186 | . . . . . . . 53 10 39 . . . . . . 84 Shots Hit Robots 570 | . . 6 36 21 . 6 42 14 32 . 90 59 . . 8 256 Core Hits 241 | . . 6 15 21 . 3 13 7 15 . 34 20 . . 13 94 Critical Kills 9 | . . . . . . . . . . . 2 . . . . 7 Critical Parts Destroyed 11 | . . . . . . . . . . . 4 . . . . 7 Critical Strikes 44 | . . . 1 . . . 4 . 1 . 11 3 . . . 24 Burn 3 | . . . 1 . . . . . . . . 2 . . . . Meltdown 2 | . . . . . . . . . . . . . . . . 2 Destroy 18 | . . . . . . . . . . . 6 . . . . 12 Blast 21 | . . . . . . . 4 . 1 . 5 1 . . . 10 Melee Attacks . | . . . . . . . . . . . . . . . . . Impact . | . . . . . . . . . . . . . . . . . Slashing . | . . . . . . . . . . . . . . . . . Piercing . | . . . . . . . . . . . . . . . . . Sneak Attacks . | . . . . . . . . . . . . . . . . . Combat Hostiles . | . . . . . . . . . . . . . . . . . Follow-up Attacks . | . . . . . . . . . . . . . . . . . Damage Inflicted 25311 | . . 184 756 781 . 115 3491 744 2311 . 2940 2048 . . 879 11062 Guns 4292 | . . 49 470 . . 53 . 54 29 . 1162 860 . . . 1615 Cannons 18475 | . . 16 226 308 . 62 3491 673 2229 . 1614 1188 . . . 8668 Explosions 2454 | . . 119 58 473 . . . 17 53 . 164 . . . 879 691 Melee . | . . . . . . . . . . . . . . . . . Ramming 90 | . . . 2 . . . . . . . . . . . . 88 Kinetic 18189 | . . 16 226 43 . . 3491 712 2246 . 2589 1729 . . . 7137 Thermal 4668 | . . 49 419 265 . 115 . . . . . 319 . . 91 3410 Explosive 1222 | . . 119 . . . . . . . . . . . . 788 315 Electromagnetic 1142 | . . . 109 473 . . . 32 65 . 351 . . . . 112 Impact . | . . . . . . . . . . . . . . . . . Slashing . | . . . . . . . . . . . . . . . . . Piercing . | . . . . . . . . . . . . . . . . . Highest Corruption 17 | . . . . . . . . . . . 2 5 . . . 17 Average Corruption 7 | . . . . . . . . . . . 1 2 . . . 10 Corruption Purged 20 | . . . . . . . . . . . . . . . . 20 Corruption Blocked . | . . . . . . . . . . . . . . . . . Effects 187 | . . . . . . . . . . . 8 24 . . . 155 Message Errors 42 | . . . . . . . . . . . 1 6 . . . 35 Matter Fused 44 | . . . . . . . . . . . 2 7 . . . 35 Heat Flow Errors 33 | . . . . . . . . . . . 3 2 . . . 28 Energy Discharges 21 | . . . . . . . . . . . 1 3 . . . 17 Parts Rejected 3 | . . . . . . . . . . . . 1 . . . 2 Parts Fused 3 | . . . . . . . . . . . . 1 . . . 2 Data Loss (minor) 18 | . . . . . . . . . . . . 1 . . . 17 Data Loss (major) 9 | . . . . . . . . . . . . 1 . . . 8 Misfires 7 | . . . . . . . . . . . . 1 . . . 6 Alerts 2 | . . . . . . . . . . . 1 . . . . 1 Misdirections 3 | . . . . . . . . . . . . . . . . 3 Weapon Failures 2 | . . . . . . . . . . . . 1 . . . 1 Overload Shots . | . . . . . . . . . . . . . . . . . Overflow Damage 2046 | . . . . 36 . . 535 62 198 . 65 213 . . 51 886 Projectiles 1916 | . . . . . . . 535 62 198 . 65 213 . . . 843 Explosions 122 | . . . . 36 . . . . . . . . . . 51 35 Melee 8 | . . . . . . . . . . . . . . . . 8 Knockbacks 81 | . . . 4 . . . 12 2 12 . 4 9 . . . 38 Impact 1 | . . . . . . . . . . . . . . . . 1 Kinetic 70 | . . . 3 . . . 11 2 10 . 4 9 . . . 31 Secondary 10 | . . . 1 . . . 1 . 2 . . . . . . 6 Self-Inflicted Damage 257 | . . . . 59 . . . 22 . . 19 . . . . 157 Shots 10 | . . . . 5 . . . 1 . . 1 . . . . 3 Rammed 4 | . . . . . . . . . . . . . . . . 4 Targets Rammed 10 | . . . 1 . . . . . . . . . . . . 9 Kicked 6 | . . . 1 . . . . . . . . . . . . 5 Crushed . | . . . . . . . . . . . . . . . . . Highest Temperature 581 | . 20 63 302 191 . 360 . 54 42 . 581 237 . . 49 435 Average Temperature 86 | . 12 26 95 63 . 180 . 30 20 . 80 45 . . 12 99 Received Heat Transfer 2864 | . . 87 257 40 . . 126 63 225 . 576 228 . . 85 1177 Effects 10 | . . . . . . . . . . . 6 . . . . 4 Shutdowns 2 | . . . . . . . . . . . 2 . . . . . Energy Bleed 1 | . . . . . . . . . . . . . . . . 1 Interference 1 | . . . . . . . . . . . 1 . . . . . Matter Decay 1 | . . . . . . . . . . . . . . . . 1 Short Circuit 2 | . . . . . . . . . . . 1 . . . . 1 Damage (minor) 1 | . . . . . . . . . . . . . . . . 1 Damage (major) 1 | . . . . . . . . . . . 1 . . . . . Damage (core) 1 | . . . . . . . . . . . 1 . . . . . Siege Activations . | . . . . . . . . . . . . . . . . . Martial Activations . | . . . . . . . . . . . . . . . . . Shielding Activations . | . . . . . . . . . . . . . . . . . Robots Disrupted . | . . . . . . . . . . . . . . . . . Combat Hostiles . | . . . . . . . . . . . . . . . . . Robots Corrupted 4 | . . . . . . . . . 1 . 1 . . . . 2 Combat Hostiles 3 | . . . . . . . . . 1 . 1 . . . . 1 Parts Fried 11 | . . . . . . . . . 1 . 3 . . . . 7 Impact Corruptions 3 | . . . . . . . . . 1 . . . . . . 2 Robots Melted 4 | . . . . . . . . . . . . 1 . . . 3 Combat Hostiles 4 | . . . . . . . . . . . . 1 . . . 3 Parts Melted 17 | . . . 1 . . 2 . . . . . 6 . . . 8 Heat Transferred 7221 | . . 148 951 481 . 222 . . . . . 850 . . 100 4469 Parts Sabotaged 4 | . . . . . . . . . . . . . . . . 4 Parts Stolen . | . . . . . . . . . . . . . . . . . Parts Stripped . | . . . . . . . . . . . . . . . . . Power Chain Reactions 2 | . . . 1 . . . . . . . . . . . . 1 Alert | -11 -10 -10 -9 -9 -9 -8 -8 -8 -8 -7 -7 -7 -6 -6 -6 -5 ------- Run | Yrd Mat Min Mat Min Exi Min Mat Sto Gar Fac Gar Fac Fac Was Fac Fac Maximum Alert Level 4 | . . . . . . . . . 2 1 3 2 . . . 4 Low Security (%) 58 | 100 100 100 100 100 . 100 100 100 39 . 2 . 100 100 100 41 Level 1 20 | . . . . . . . . . 51 100 25 89 . . . 15 Level 2 10 | . . . . . . . . . 9 . 42 10 . . . 15 Level 3 4 | . . . . . . . . . . . 29 . . . . 6 Level 4 6 | . . . . . . . . . . . . . . . . 20 Level 5 . | . . . . . . . . . . . . . . . . . High Security . | . . . . . . . . . . . . . . . . . Max Security . | . . . . . . . . . . . . . . . . . Peak Influence 1317 | . 5 89 175 125 . 60 196 181 541 283 895 475 144 46 196 1317 Initial 469 | . . . 18 55 . . . 81 65 283 177 469 144 46 11 86 Average 260 | . . 41 58 19 . 18 20 120 244 268 571 318 139 32 66 461 Influence Increases 5672 | . 5 119 373 126 . 60 513 250 476 . 778 452 . . 256 2264 Destroy 0b10 Robot/C 3020 | . . 60 220 100 . 60 320 120 280 . 400 240 . . 120 1100 Destroy 0b10 Robot/NC 110 | . . . 10 . . . 30 . . . 5 10 . . 5 50 Destroy Leader 582 | . . 10 54 20 . . 78 30 10 . 30 82 . . 30 238 Successful Hack 161 | . 5 . 11 . . . 33 8 . . . 45 . . . 59 Disable Machine 465 | . . . 75 . . . 45 45 . . . 45 . . 60 195 Anti-Garrison Action 300 | . . . . . . . . . 150 . 150 . . . . . Destroy Structure 539 | . . 19 3 6 . . 7 2 36 . 88 15 . . 41 322 Partial Spotted 15 | . . . . . . . . . . . . 15 . . . . Lose Combat Pursuer 480 | . . 30 . . . . . 45 . . 105 . . . . 300 Influence Decreases 4355 | . 5 70 279 269 . 60 318 344 36 288 136 1052 161 118 96 1123 Entered New Map 1363 | . . . 31 88 . . . 114 36 258 76 426 151 88 5 90 Time Decay 2326 | . 5 60 238 111 . 60 308 230 . 30 . 526 10 30 81 637 Lost Part 572 | . . 10 10 70 . . 10 . . . 60 80 . . 10 322 Lost Ally 20 | . . . . . . . . . . . . 20 . . . . Purge Threat 74 | . . . . . . . . . . . . . . . . 74 Squads Dispatched 39 | . 1 1 1 . . . 2 2 . . . 6 . . 1 25 Investigation 11 | . 1 1 1 . . . . 1 . . . 3 . . . 4 Extermination 13 | . . . . . . . . . . . . 3 . . 1 9 Reinforcement 9 | . . . . . . . 2 1 . . . . . . . 6 Assault 6 | . . . . . . . . . . . . . . . . 6 Garrison . | . . . . . . . . . . . . . . . . . Intercept . | . . . . . . . . . . . . . . . . . Searches Triggered . | . . . . . . . . . . . . . . . . . Construction Impeded 5 | . . . . . . . . . . . . . . . . 5 Haulers Reinforced . | . . . . . . . . . . . . . . . . . Active Scanning Responses . | . . . . . . . . . . . . . . . . . Cargo Convoy Interrupts . | . . . . . . . . . . . . . . . . . Stealth | -11 -10 -10 -9 -9 -9 -8 -8 -8 -8 -7 -7 -7 -6 -6 -6 -5 --------- Run | Yrd Mat Min Mat Min Exi Min Mat Sto Gar Fac Gar Fac Fac Was Fac Fac Distress Signals 3 | . 1 . 1 . . . 1 . . . . . . . . . Communications Jammed . | . . . . . . . . . . . . . . . . . Distress Signals . | . . . . . . . . . . . . . . . . . Times Spotted 246 | . 5 5 22 16 . 4 24 9 16 . 24 14 . 5 8 94 Peak Tracking Total 8 | . 5 3 5 8 . 4 5 3 4 . 6 3 . 5 4 7 Tactical Retreats 22 | . . 1 . 2 . . . 2 . . 5 . . . . 12 Traps | -11 -10 -10 -9 -9 -9 -8 -8 -8 -8 -7 -7 -7 -6 -6 -6 -5 ------- Run | Yrd Mat Min Mat Min Exi Min Mat Sto Gar Fac Gar Fac Fac Was Fac Fac Traps Triggered 16 | . 1 . . . . . 1 . 6 . 2 1 1 . 2 2 Indirectly . | . . . . . . . . . . . . . . . . . Trap Hack Attempts . | . . . . . . . . . . . . . . . . . Triggered . | . . . . . . . . . . . . . . . . . Disarmed 4 | . . . 4 . . . . . . . . . . . . . Reprogrammed . | . . . . . . . . . . . . . . . . . Reused . | . . . . . . . . . . . . . . . . . Traps Extracted . | . . . . . . . . . . . . . . . . . Installed . | . . . . . . . . . . . . . . . . . Triggered . | . . . . . . . . . . . . . . . . . Machines | -11 -10 -10 -9 -9 -9 -8 -8 -8 -8 -7 -7 -7 -6 -6 -6 -5 ---------- Run | Yrd Mat Min Mat Min Exi Min Mat Sto Gar Fac Gar Fac Fac Was Fac Fac Machines Disabled 36 | . . . 5 . . . 3 3 1 . 4 3 . . 4 13 Max in Single Turn 4 | . . . 1 . . . 1 1 1 . 2 1 . . 4 2 Garrison Access 1 | . . . . . . . . . . . . . . . . 1 Garrison Relay 3 | . . . . . . . . . 1 . 2 . . . . . Phase Generator 1 | . . . . . . . . . . . 1 . . . . . Machines Repaired . | . . . . . . . . . . . . . . . . . Machines Dismantled . | . . . . . . . . . . . . . . . . . Machines Sabotaged . | . . . . . . . . . . . . . . . . . Overloaded Fab Kills . | . . . . . . . . . . . . . . . . . Hacking | -11 -10 -10 -9 -9 -9 -8 -8 -8 -8 -7 -7 -7 -6 -6 -6 -5 --------- Run | Yrd Mat Min Mat Min Exi Min Mat Sto Gar Fac Gar Fac Fac Was Fac Fac Machines Accessed 49 | . 2 1 3 . 4 . 7 5 1 2 . 8 . . 1 15 Terminals 31 | . 2 . 2 . . . 6 4 1 1 . 5 . . 1 9 Fabricators 2 | . . . . . . . . . . . . 1 . . . 1 Repair Stations 7 | . . . 1 . . . 1 . . . . 1 . . . 4 Recycling Units . | . . . . . . . . . . . . . . . . . Scanalyzers 1 | . . . . . . . . . . . . 1 . . . . Garrison Access 3 | . . . . . . . . 1 . 1 . . . . . 1 Total Hacks 163 | . 7 1 12 . 49 . 26 9 2 4 . 19 . . 1 33 Successful 111 | . 3 1 8 . 49 . 15 7 . 2 . 8 . . 1 17 Failed 52 | . 4 . 4 . . . 11 2 2 2 . 11 . . . 16 Catastrophic 1 | . . . . . . . . . . . . 1 . . . . Database Lockouts . | . . . . . . . . . . . . . . . . . Manual 10 | . 1 . . . 1 . 3 1 . . . 4 . . . . Terminals 76 | . 7 . 8 . . . 21 7 2 2 . 11 . . 1 17 Fabricators 4 | . . . . . . . . . . . . 3 . . . 1 Repair Stations 24 | . . . 4 . . . 5 . . . . 2 . . . 13 Recycling Units . | . . . . . . . . . . . . . . . . . Scanalyzers 3 | . . . . . . . . . . . . 3 . . . . Garrison Access 6 | . . . . . . . . 2 . 2 . . . . . 2 Terminal Hacks 89 | . 3 1 4 . 49 . 11 6 . . . 3 . . 1 11 Record 53 | . 1 . . . 49 . . 1 . . . . . . . 2 Prototype ID Bank 3 | . . . . . . . 1 . . . . . . . . 2 Open Door 2 | . . 1 . . . . . 1 . . . . . . . . Open DSF 5 | . . . . . . . . . . . . 2 . . 1 2 Level Access Points 1 | . . . . . . . . . . . . . . . . 1 Branch Access Points 1 | . . . . . . . 1 . . . . . . . . . Emergency Access Points 1 | . . . . . . . 1 . . . . . . . . . Alert Level 7 | . . . . . . . 2 2 . . . 1 . . . 2 Unreport Threat 1 | . . . . . . . . . . . . . . . . 1 Locate Traps 4 | . . . 1 . . . 1 1 . . . . . . . 1 Disarm Traps 1 | . . . 1 . . . . . . . . . . . . . Dispatch Records 1 | . . . 1 . . . . . . . . . . . . . Hauler Manifests 3 | . 1 . . . . . 2 . . . . . . . . . Registered Components 1 | . . . . . . . 1 . . . . . . . . . Zone Layout 5 | . 1 . 1 . . . 2 1 . . . . . . . . Fabricator Hacks 2 | . . . . . . . . . . . . 2 . . . . Network Status 1 | . . . . . . . . . . . . 1 . . . . Build 1 | . . . . . . . . . . . . 1 . . . . Repair Station Hacks 13 | . . . 4 . . . 4 . . . . 1 . . . 4 Scan Component 9 | . . . 2 . . . 2 . . . . 1 . . . 4 Repair 4 | . . . 2 . . . 2 . . . . . . . . . Recycling Unit Hacks . | . . . . . . . . . . . . . . . . . Scanalyzer 1 | . . . . . . . . . . . . 1 . . . . Insert Component 1 | . . . . . . . . . . . . 1 . . . . Garrison Access Hacks 5 | . . . . . . . . 1 . 2 . . . . . 2 Unlock Access 2 | . . . . . . . . 1 . 1 . . . . . . Seal Access 1 | . . . . . . . . . . . . . . . . 1 Coupler Status 2 | . . . . . . . . . . 1 . . . . . 1 Unauthorized Hacks 1 | . . . . . . . . . . . . 1 . . . . Terminals 1 | . . . . . . . . . . . . 1 . . . . Botnet 1 | . . . . . . . . . . . . 1 . . . . Fabricators . | . . . . . . . . . . . . . . . . . Repair Stations . | . . . . . . . . . . . . . . . . . Recycling Units . | . . . . . . . . . . . . . . . . . Scanalyzers . | . . . . . . . . . . . . . . . . . Garrison Access . | . . . . . . . . . . . . . . . . . Data Cores Recovered 3 | . . . . . . . 1 . . . . . . . 1 1 Used . | . . . . . . . . . . . . . . . . . Hacking Detections 36 | . 2 . 2 . . . 6 4 1 2 . 6 . . 1 12 Full Trace Events 8 | . . . 1 . . . . 1 . . . 2 . . . 4 Feedback Events . | . . . . . . . . . . . . . . . . . Feedback Blocked . | . . . . . . . . . . . . . . . . . Robot Schematics Acquired . | . . . . . . . . . . . . . . . . . Robots Built . | . . . . . . . . . . . . . . . . . Authchips . | . . . . . . . . . . . . . . . . . Time . | . . . . . . . . . . . . . . . . . Total Robot Build Rating . | . . . . . . . . . . . . . . . . . Part Schematics Acquired . | . . . . . . . . . . . . . . . . . Parts Built 1 | . . . . . . . . . . . . 1 . . . . Authchips . | . . . . . . . . . . . . . . . . . Time 106 | . . . . . . . . . . . . 106 . . . . Total Part Build Rating 6 | . . . . . . . . . . . . 6 . . . . Parts Repaired 4 | . . . 2 . . . 2 . . . . . . . . . Time 170 | . . . 70 . . . 100 . . . . . . . . . Parts Recycled . | . . . . . . . . . . . . . . . . . Recycled Matter . | . . . . . . . . . . . . . . . . . Retrieved Matter . | . . . . . . . . . . . . . . . . . Retrieved Components . | . . . . . . . . . . . . . . . . . Parts Scanalyzed 1 | . . . . . . . . . . . . 1 . . . . Part Schematics Acquired . | . . . . . . . . . . . . . . . . . Parts Damaged . | . . . . . . . . . . . . . . . . . Bothacking | -11 -10 -10 -9 -9 -9 -8 -8 -8 -8 -7 -7 -7 -6 -6 -6 -5 ------------ Run | Yrd Mat Min Mat Min Exi Min Mat Sto Gar Fac Gar Fac Fac Was Fac Fac Used RIF Installer 2 | . . . . . . . . . 1 . 1 . . . . . Command Fork 1 | . . . . . . . . . . . 1 . . . . . Robots Hacked 5 | . . . . . . . . . . . . 2 . . 2 1 Non-combat 1 | . . . . . . . . . . . . . . . 1 . Combat 4 | . . . . . . . . . . . . 2 . . 1 1 Robot Hacks Applied 6 | . . . . . . . . . . . . 2 . . 3 1 drop_inventory 1 | . . . . . . . . . . . . . . . 1 . link_complan 1 | . . . . . . . . . . . . 1 . . . . overload_power 1 | . . . . . . . . . . . . . . . . 1 wipe_record 1 | . . . . . . . . . . . . . . . 1 . go_dormant 1 | . . . . . . . . . . . . . . . 1 . formatsys_high 1 | . . . . . . . . . . . . 1 . . . . Relay Couplers Released 13 | . . . . . . . . . 4 . 9 . . . . . Machine Destruction 13 | . . . . . . . . . 4 . 9 . . . . . Attached 2 | . . . . . . . . . . . . 2 . . . . Fabnet Peak Effective % . | . . . . . . . . . . . . . . . . . Robots Rewired . | . . . . . . . . . . . . . . . . . Allies Hacked . | . . . . . . . . . . . . . . . . . Hacks Repelled . | . . . . . . . . . . . . . . . . . Allies | -11 -10 -10 -9 -9 -9 -8 -8 -8 -8 -7 -7 -7 -6 -6 -6 -5 -------- Run | Yrd Mat Min Mat Min Exi Min Mat Sto Gar Fac Gar Fac Fac Was Fac Fac Total Allies 1 | . . . . . . . . . . . . 1 . . . . Largest Group 1 | . . . . . . . . . . . . 1 . . . . Highest-Rated Group 32 | . . . . . . . . . . . . 32 . . . . Highest-Rated Ally 32 | . . . . . . . . . . . . 32 . . . . Total Orders . | . . . . . . . . . . . . . . . . . Ally Attacks 2 | . . . . . . . . . . . . 2 . . . . Total Damage 82 | . . . . . . . . . . . . 82 . . . . Kills . | . . . . . . . . . . . . . . . . . Allies Corrupted . | . . . . . . . . . . . . . . . . . Allies Melted . | . . . . . . . . . . . . . . . . . Intel | -11 -10 -10 -9 -9 -9 -8 -8 -8 -8 -7 -7 -7 -6 -6 -6 -5 ------- Run | Yrd Mat Min Mat Min Exi Min Mat Sto Gar Fac Gar Fac Fac Was Fac Fac Active Infowar (turns) 4708 | . . . 632 205 . . . . . 41 . . 33 69 276 3452 Optics 305 | . . . 59 205 . . . . . 41 . . . . . . Sensors 1242 | . . . 573 . . . . . . . . . 32 69 276 292 Terrain 3451 | . . . . . . . . . . . . . . . . 3451 ECM 1 | . . . . . . . . . . . . . 1 . . . Robot Analysis Total . | . . . . . . . . . . . . . . . . . Derelict Logs Recovered . | . . . . . . . . . . . . . . . . . Drone Launches . | . . . . . . . . . . . . . . . . . Drone Recoveries . | . . . . . . . . . . . . . . . . . Exploration | -11 -10 -10 -9 -9 -9 -8 -8 -8 -8 -7 -7 -7 -6 -6 -6 -5 ------------- Run | Yrd Mat Min Mat Min Exi Min Mat Sto Gar Fac Gar Fac Fac Was Fac Fac Turns Passed 16935 | 44 215 194 635 644 1790 190 3471 480 1220 77 1110 1472 34 69 276 5014 Spaces Moved 8574 | 39 178 171 316 252 741 75 1257 235 646 127 615 917 53 120 356 2476 Core 114 | 21 . . . 2 . . . . . . . . . . . 91 Treads 2725 | . . . . 174 600 . 1222 235 494 . . . . . . . Legs 3499 | . . . 258 76 141 75 35 . 6 . 486 250 . . . 2172 Wheels 425 | 18 178 171 58 . . . . . . . . . . . . . Hover 1811 | . . . . . . . . . 146 127 129 667 53 120 356 213 Flight . | . . . . . . . . . . . . . . . . . Fastest Speed 42 | 50 100 90 90 120 190 190 145 145 42 52 52 52 52 52 52 50 Average Speed 154 | 79 100 95 114 218 238 190 227 174 173 52 124 86 52 52 65 151 Slowest Speed 400 | 100 100 100 120 260 260 190 385 225 233 52 180 126 52 52 112 400 Overloaded Moves . | . . . . . . . . . . . . . . . . . Propulsion Burnouts . | . . . . . . . . . . . . . . . . . Robots Hopped . | . . . . . . . . . . . . . . . . . Potential Cave-ins . | . . . . . . . . . . . . . . . . . Cave-ins Triggered 1 | . . . . . . . . . . . . . . . . 1 Time Travels 1 | . . . . . 1 . . . . . . . . . . . Exploration Rate (%) 35 | 3 28 34 28 60 91 26 47 42 52 3 47 15 1 77 11 37 Regions Visited 16 Branch Regions 5 Pre-discovered Areas 1 | . . . . . 1 . . . . . . . . . . . Known Exits Taken 3 | . . . . . . . 1 1 . 1 . . . . . . Unknown Exits Taken 9 | 1 1 1 1 1 1 1 . . . . . 1 . . 1 . Scrap Searched . | . . . . . . . . . . . . . . . . . Spaces Dug 1 | . . . . . . . . . . . . . . . . 1 Terrain Destroyed 390 | . . 27 2 6 . . 6 1 11 . 85 13 . . 38 201 Melee . | . . . . . . . . . . . . . . . . . Projectile 154 | . . . 2 6 . . 6 1 11 . 35 13 . . . 80 AOE 234 | . . 27 . . . . . . . . 49 . . . 38 120 Terrain Rammed . | . . . . . . . . . . . . . . . . . Walls Destroyed . | . . . . . . . . . . . . . . . . . Machines Disabled . | . . . . . . . . . . . . . . . . . Actions | -11 -10 -10 -9 -9 -9 -8 -8 -8 -8 -7 -7 -7 -6 -6 -6 -5 --------- Run | Yrd Mat Min Mat Min Exi Min Mat Sto Gar Fac Gar Fac Fac Was Fac Fac Total 11526 | 51 212 189 519 302 762 112 1865 295 748 139 782 1499 60 126 394 3471 Wait 1913 | . 21 . 118 15 . 32 531 32 38 . 31 459 . 6 15 615 Move 8560 | 38 177 170 315 251 740 74 1256 234 645 127 614 916 53 119 355 2476 Hop . | . . . . . . . . . . . . . . . . . Pick Up 230 | 7 7 5 13 6 5 . 51 10 19 4 21 26 3 1 6 46 Fast Attach 37 | 1 . 1 5 . . . 6 . . . 1 1 . . 1 21 Attach 89 | 4 2 . 4 5 1 . 3 3 7 3 10 12 2 . 1 32 Detach 7 | . . . . . . . . . . 1 2 3 1 . . . Swap 99 | 1 2 4 11 3 7 1 4 1 10 1 6 16 . . . 32 Drop 154 | . 1 3 16 . 9 . 14 6 19 3 10 12 1 . 6 54 Fire 404 | . 2 6 36 22 . 5 . 9 4 . 83 54 . . 10 173 Melee . | . . . . . . . . . . . . . . . . . Ram 4 | . . . . . . . . . . . . . . . . 4 Kick 6 | . . . 1 . . . . . . . . . . . . 5 Crush . | . . . . . . . . . . . . . . . . . Escape Stasis 23 | . . . . . . . . . 6 . 4 . . . . 13 Rewire . | . . . . . . . . . . . . . . . . . Trap . | . . . . . . . . . . . . . . . . . Miscellaneous . | . . . . . . . . . . . . . . . . . Route ------- -11/Scrapyard -10/Materials -10/Mines -9/Materials -9/Mines -9/Exiles (discovered 2 exits: [*Min x2]) -8/Mines -8/Materials (discovered 3 exits: *Fac / *Sto x2) -8/Storage -8/Garrison -7/Factory -7/Garrison -7/Factory -6/Factory -6/Waste -6/Factory -5/Factory (discovered 5 exits: Fac x4 / [*Upp]) History --------- Turn | Location | Event 9 | -11/Scrapyard | Discovered new exit (range 16) 45 | -11/Scrapyard | Entered Materials 128 | -10/Materials | Discovered new exit (range 15) 260 | -10/Materials | Entered Mines 310 | -10/Mines | Build established: Mutant 343 | -10/Mines | Discovered new exit (range 6) 411 | -10/Mines | Met a Derelict shopkeep closing up shop 454 | -10/Mines | Entered Materials 454 | -9/Materials | Evolved 2 slots: Propulsion x1, Utility x1 657 | -9/Materials | Repaired Shock Rifle 691 | -9/Materials | Repaired Imp. Ion Engine 842 | -9/Materials | Discovered new exit (range 15) 1089 | -9/Materials | Entered Mines 1108 | -9/Mines | Assembled infested the area 1113 | -9/Mines | Assisted by a Guerilla fighting off Assembled 1210 | -9/Mines | Lost 3 parts (2n1u) 1273 | -9/Mines | Core integrity fell below 50% 1298 | -9/Mines | Lost 4 parts (1p2n1w) 1628 | -9/Mines | Build established: Scavenger-Mutant 1720 | -9/Mines | Deemed a non-threat by the Exiles lab entrance 1723 | -9/Mines | Discovered new exit (range 5) 1733 | -9/Mines | Entered Exiles 1773 | -9/Exiles | Discovered new exit (range 15) 1851 | -9/Exiles | Met 8R-AWN 1893 | -9/Exiles | Met EX-HEX 2043 | -9/Exiles | Met EX-BIN 2331 | -9/Exiles | Aligned with FarCom system 2333 | -9/Exiles | Given EX-Vault access code 2406 | -9/Exiles | Met EX-DEC 2499 | -9/Exiles | Visited The Gauntlet 2876 | -9/Exiles | Discovered new exit (range 14) 3046 | -9/Exiles | Learned location of Zion (-7) 3191 | -9/Exiles | Opened EX-Vault 3224 | -9/Exiles | Found Prototype Device 3226 | -9/Exiles | Identified Chronowheel 3226 | -9/Exiles | Activated Chronowheel 3226 | -9/Exiles | Spacetime reconverged on an earlier point 3237 | -9/Exiles | Found Prototype Ballistic Cannon 3255 | -9/Exiles | Found Prototype Storage 3294 | -9/Exiles | Warned to stay clear of 0b10 Research branches 3523 | -9/Exiles | Stole two prototypes: AWS/Autocannon, Lightpack 2.0 3523 | -9/Exiles | Entered Mines 3682 | -8/Mines | Discovered new exit (range 11) 3713 | -8/Mines | Entered Materials 3713 | -8/Materials | Evolved 2 slots: Utility x1, Weapon x1 3715 | -8/Materials | Identified AWS/Autocannon 4194 | -8/Materials | Build established: Tank 4975 | -8/Materials | Identified Lightpack 2.0 5250 | -8/Materials | Build established: Hauler-Skirmisher 5885 | -8/Materials | Repaired Flexi-carbon Leg 5936 | -8/Materials | Repaired Bore Cannon 7032 | -8/Materials | Discovered new exit (range 14) 7066 | -8/Materials | Identified exit to Storage 7184 | -8/Materials | Entered Storage 7186 | -8/Storage | FarCom data flow suspended 7490 | -8/Storage | Build established: Hauler-Gunner 7615 | -8/Storage | Identified exit to Garrison 7664 | -8/Storage | Entered Garrison 7866 | -8/Garrison | Triggered checkpoint 8116 | -8/Garrison | Triggered checkpoint 8345 | -8/Garrison | Discovered new exit (range 11) 8406 | -8/Garrison | Installed Relay Interface Framework 8742 | -8/Garrison | Triggered checkpoint 8773 | -8/Garrison | Garrison Relay disabled 8884 | -8/Garrison | Entered Factory 8884 | -7/Factory | Evolved 2 slots: Utility x2 8961 | -7/Factory | Identified exit to Garrison 8961 | -7/Factory | Entered Garrison 9138 | -7/Garrison | Lost 3 parts (2n1w) 9635 | -7/Garrison | Triggered checkpoint 9649 | -7/Garrison | Build established: Hauler-Tank 9653 | -7/Garrison | Garrison Relay disabled 9791 | -7/Garrison | Triggered checkpoint 9861 | -7/Garrison | Triggered checkpoint 9901 | -7/Garrison | Phase Generator disabled 9933 | -7/Garrison | Expanded RIF knowledge: Command Fork 9970 | -7/Garrison | Garrison Relay disabled 10060 | -7/Garrison | Discovered new exit (range 3) 10071 | -7/Garrison | Entered Factory 10074 | -7/Factory | Identified exit to DSF 10438 | -7/Factory | Build established: Hauler-Gunner 10608 | -7/Factory | Core integrity fell below 50% 10739 | -7/Factory | Build established: Bothacker-Gunner 11250 | -7/Factory | Lost 6 parts (1p1n2u2w) 11465 | -7/Factory | Fabricated Smartbomb Launcher (x1) 11527 | -7/Factory | Build established: Bothacker-Tank 11541 | -7/Factory | Discovered new exit (range 5) 11543 | -7/Factory | Entered another Factory area 11543 | -6/Factory | Evolved 2 slots: Utility x2 11577 | -6/Factory | Sucked down chute 11577 | -6/Factory | Entered Waste 11586 | -6/Waste | Spotted C-40 Crusher 11607 | -6/Waste | Spotted C-40 Crusher 11610 | -6/Waste | Spotted C-40 Crusher 11614 | -6/Waste | Spotted C-40 Crusher 11616 | -6/Waste | Spotted C-40 Crusher 11627 | -6/Waste | Spotted C-40 Crusher 11628 | -6/Waste | Discovered new exit (range 12) 11646 | -6/Waste | Entered Factory 11804 | -6/Factory | Discovered new exit (range 15) 11922 | -6/Factory | Entered another Factory area 11922 | -5/Factory | Evolved 2 slots: Power x1, Utility x1 12249 | -5/Factory | Build established: Bothacker-Skirmisher 12391 | -5/Factory | Lost 3 parts (1p1n1w) 12738 | -5/Factory | Build established: Gunner 13119 | -5/Factory | Identified exit to Factory 13356 | -5/Factory | System corruption reached 10% 13357 | -5/Factory | Build established: Scavenger-Tank 14499 | -5/Factory | Crushed by falling debris 14530 | -5/Factory | Lost 3 parts (2p1n) 14545 | -5/Factory | Build established: Tank 15162 | -5/Factory | Build established: Scavenger-Tank 15222 | -5/Factory | First assault squad dispatched 15470 | -5/Factory | Build established: Scavenger-Gunner 15946 | -5/Factory | AWS/Autocannon suddenly broke down 15995 | -5/Factory | Lost 3 parts (1p1n1u) 16756 | -5/Factory | Core integrity fell below 50% 16864 | -5/Factory | Core integrity fell below 20% 16912 | -5/Factory | Lost 14 parts (3p3n4u4w) 16932 | -5/Factory | Discovered new exit (range 6) 16936 | -5/Factory | Destroyed by H-66 Slayer with Gauss Rifle Last Messages --------------- 16896_ Slammed into E-15 Imp. 16896_ E-15 Imp knocked back. 16896_ Destabilizing: Core damaged (-50). 16896_ Adv. Targeting Computer blown off. 16896_ Armor Integrity Analyzer blown off. 16896_ Relay Coupler [NC] blown off. 16896_ E-15 Imp destroyed. 16900_ Slammed into U-05 Engineer. 16900_ ALERT: Construction progress impeded, dispatching reinforcements to local area. 16907_ #EBIB9VL VRSLEEW&/GXCL3VCT&V 16916_ Slammed into U-05 Engineer. 16919_ Acquired Adv. Plasma Cannon. 16922_ Dropped Adv. Plasma Cannon. 16923_ System corrupted: Component data lost. 16928_ Acquired Mic. Fission Core. 16930_ Dropped Mic. Fission Core. 16932_ EXIT=FOUND 16933_ Penetrated by Slug. [Achievement: Just Browsing] Map ----- +----------------------------------------------------+ | # #????????????????????????????????? | | ## # #????????????????????????????????? | | ##### # #????????????????????????????????? | | ##### + #????????????????????????????????? | | ##### # #????????????????????????????????? | | ##### # #???##+#?????????????????????????? | | ##### #########??? ???????????????????????? | | ##### ########### ??????????????????????? | | % ??????????????????????? | | ######+############ ??????????????????????? | | ## % #####???? ????????????????????????? | | ## #####???? ????????????????????????? | | ## #####?##? ????????????????????????? | | ## ] #####?#??# #????????????????????????? | | ########"############ #????????????????????????? | | ### # #????????????????????????? | | # * # #????????????????????????? | | # # #????????????????????????? | | =# # #????????????????????????? | | # !! # #????????????????????????? | | # !! + +????????????????????????? | | # !! # #????????????????????????? | | ################### Ah##???????????????????????? | | # ############???# #???????????????????????? | | ### ###########?#??# ###### ##???????????????? | | ###############??# < @ +?????????? | | ##############?#?# # ###???????????????? | | #####?#########??## # #?????????????????? | | ###############???########? ???????????????? | | ###############???#? ? ?? ! ????????????? | | ###?#########?#####? ?? ? !!!???????????? | | #################?"??? #?? !!!#??????????? | | ############?####"?" ?#? """ !!!#??????????? | | #################""??? #? """ ???????????? | | ################? ?## ?""" ???????????? | | ##### #######?### ?? ????????????? | | " ##### # ? ?### ? ?? ????????????? | | " ##### # #?# ? ?#?#???????????????? | | ##### # ## #?#???????????????? | | #?##### # ? ?# #?##??????????????? | | ####### !# ## " #???#?????????????? | | #####?# #? ## ?? ##????????????????? | | ##### ###+####?#? ##??#?????????????? | | ############+## ###### ##?###??????????????? | | !! ###### ######??#???????????? | | % ! ###??#??#???????????? | | % % ^ | ###+#########??#???????????? | | ##+###+#### # ##?#?????????????? | | # % ### % # ?#?#?#???????????? | | ###! %""" ### # """ ?" ??#??#????????????? | +----------------------------------------------------+ Best States ------------- Heat Dissipation 68 Energy Generation 34 Energy Capacity 375 Matter Stores 400 Matter Capacity 400 Sight Range 22 Robot Scan Range 16 Terrain Scan Range 20 Terrain Scan Density 210 Armor Coverage 825 Resistance: KI 20 Resistance: EM 15 Propulsion Shielding 33 Point Defense Rating 80 Phase Shifting 5 Evasion (%) 75 Targeting Accuracy 8 Armor Integrity Analysis 30 Recoil Reduction 3 Offensive Hacking 20 Defensive Hacking 14 Relay Coupler Types 2 Relay Coupler Value 36 Item Schematics ----------------- None Robot Schematics ------------------ None Fabricated ------------ Smartbomb Launcher | x1 | -7/Factory | Preloaded Repaired ---------- Shock Rifle | 50% | -9/Materials Imp. Ion Engine | 54% | -9/Materials Flexi-carbon Leg | 71% | -8/Materials Bore Cannon | 55% | -8/Materials Alien Tech Used ----------------- None Achievements -------------- Assimilation Complete Dodgeball, But With Guns Error 47 Just Browsing Oh No You Don't! Omniscient Cartographer Packrat Respectable Loadout True Hacker Challenges ------------ None Game ------ Seed ArmorRecyclingPrototype Manual? 0 Play Time 03:33:07 Cumulative 25.6 hours Start 2025.08.06 @ 00:50:21 End 2025.08.10 @ 18:12:18 Sessions 23 Manual Loads 0 Difficulty Rogue Special Mode None Game No. 35 Rogue 35 Adventurer 0 Explorer 0 Win Type - Total 0 Types 0/0/0/0/0/0/0/0/0/0 Lore% 13 Gallery% 25 Achievement% 21 Wizard Run 0 Options --------- Layout 1 ASCII 0 Keyboard 0 Movement Mouse Keybinds 0 Fullscreen 1 Font 32/SmallcapsGlow Map View 50x35 Zoom Use 0% Tactical HUD 1 Map Filters NONE Filters NONE Steam 1 RUN: 1d80e3fc-e7a1-40ab-91f6-94a31db5d9f5